Cogmind - Beta 13 @@@ ROGUE MODE // 2024.04.03 @ 22:05:46 Player: BigMaxPorter Result: Destroyed by L-41 Fighter with Axe Performance ------------- Evolutions (3) 1500 Regions Visited (6) 1200 Robots Destroyed (54) 270 Value Destroyed (1904) 1904 Prototype IDs (0) 0 Alien Tech Used (0) 0 Bonus (0) 0 TOTAL SCORE: 4874 Bonus ------- None Cogmind --------- Core Integrity 0/700 Matter 271/300 Energy 100/100 System Corruption 3% Temperature Cool (0) Movement Core (350) Ox6 Location -7/Factory Parts ------- > --- POWER (2) -------- (None) > --- PROPULSION (3) --- (None) > --- UTILITY (5) ------ Large Storage Unit Terrain Scanner > --- WEAPON (3) ------- (None) > --- INVENTORY (15) --- Shock Absorption System Peak State ------------ > --- POWER ------------ Light Nuclear Core Micro Nuclear Core > --- PROPULSION ------- Light Treads Light Treads > --- UTILITY ---------- Improved Heat Sink Improved Sensor Array Propulsion Shielding Hacking Suite System Shield > --- WEAPON ----------- Heavy Particle Cannon Heavy Particle Cannon Plasma Cannon > --- INVENTORY -------- Particle Gun Pulse Rifle Gauss Rifle Welding Torch [Rating: 33] Favorites ----------- Power Improved Ion Engine Engine Improved Ion Engine Power Core Micro Nuclear Core Propulsion Aluminum Leg Treads Light Treads Leg Aluminum Leg Wheel Compact Wheel Utility Large Storage Unit Device Improved Heat Sink Storage Large Storage Unit Processor Targeting Computer Hackware System Shield Protection Propulsion Shielding Weapon Heavy Particle Cannon Energy Gun Medium Laser Energy Cannon Heavy Particle Cannon Ballistic Gun Assault Rifle Ballistic Cannon Gauss Cannon Launcher Grenade Launcher Special Weapon Welding Torch Build | -11 -10 -10 -9 -9 -8 -7 ------- Run | Yrd Mat Min Mat Min Mat Fac Slots Evolved 6 | . . . 2 . 2 2 Power 1 | . . . . . 1 . Propulsion 1 | . . . 1 . . . Utility 3 | . . . 1 . 1 1 Weapon 1 | . . . . . . 1 Parts Attached 78 | 5 10 2 5 4 23 29 Power 11 | 1 2 1 1 . 2 4 Engine 7 | 1 2 . . . 2 2 Core 4 | . . 1 1 . . 2 Reactor . | . . . . . . . Propulsion 19 | 2 3 1 2 1 6 4 Treads 6 | . . . . . 4 2 Leg 12 | 2 3 1 2 1 2 1 Wheel 1 | . . . . . . 1 Hover . | . . . . . . . Flight . | . . . . . . . Utility 18 | . 4 . 1 . 3 10 Device 9 | . 1 . . . 3 5 Storage 3 | . 2 . . . . 1 Processor 1 | . . . 1 . . . Hackware 2 | . . . . . . 2 Protection 3 | . 1 . . . . 2 Artifact . | . . . . . . . Weapon 30 | 2 1 . 1 3 12 11 Energy Gun 5 | 1 . . . . . 4 Energy Cannon 9 | . . . . . 5 4 Ballistic Gun 8 | 1 1 . 1 2 2 1 Ballistic Cannon 3 | . . . . . 2 1 Launcher 4 | . . . . 1 3 . Special Weapon 1 | . . . . . . 1 Impact Weapon . | . . . . . . . Slashing Weapon . | . . . . . . . Piercing Weapon . | . . . . . . . Special Melee Weapon . | . . . . . . . Unidentified Prototypes . | . . . . . . . Parts Lost 47 | . . . 1 . 17 29 Power 7 | . . . . . 3 4 Propulsion 9 | . . . 1 . 4 4 Utility 14 | . . . . . 4 10 Weapon 17 | . . . . . 6 11 Highest Loss Streak 8 | . . . 1 . 7 8 To Critical Strikes 1 | . . . . . 1 . Average Slot Usage (%) 76 | . 98 100 97 100 70 64 Engine 4 | . 14 7 . . 4 2 Core 3 | . . 6 10 11 . 3 Treads 4 | . . . . . 9 6 Leg 11 | . 28 28 31 33 11 . Device 8 | . 9 . . . 10 9 Storage 8 | . 12 14 11 11 9 5 Processor 2 | . . . 10 11 6 . Hackware 3 | . . . . . . 7 Protection 6 | . 4 14 11 11 . 6 Energy Gun 2 | . 9 . . . . 2 Energy Cannon 7 | . . . . . 9 11 Ballistic Gun 9 | . 18 28 22 18 4 3 Ballistic Cannon 1 | . . . . . 2 2 Naked Turns . | . . . . . . . Heaviest Build 50 | 9 32 35 36 37 45 50 Greatest Support 60 | 20 20 30 40 43 60 60 Greatest Overweight (x) 16 | 1 1 1 1 . 8 16 Average Overweight (x) 1 | . . 1 . . . 4 Largest Inventory Capacity 15 | 5 15 15 15 15 15 15 Average Capacity 13 | 5 13 15 15 15 15 12 Most Carried 15 | 5 13 15 15 15 15 11 Average Carried 7 | 2 8 14 13 15 10 3 Final Capacity 15 | 5 15 15 15 15 15 15 Final Carried 15 | 5 13 15 15 15 11 1 Class Distribution -------------------- 53% | Mutant 15% | Tank 11% | Scavenger-Mutant 7% | Skirmisher 6% | Hacker-Skirmisher Dominant Class ---------------- Mutant | -10/Materials Mutant | -10/Mines Scavenger-Mutant | -9/Materials Scavenger-Mutant | -9/Mines Mutant | -8/Materials Tank | -7/Factory Resources | -11 -10 -10 -9 -9 -8 -7 ----------- Run | Yrd Mat Min Mat Min Mat Fac Matter Collected 1514 | 210 250 92 131 52 416 363 Remotely . | . . . . . . . Salvage Created 1834 | . 387 9 155 39 445 799 Parts 90 | . 28 . 8 8 24 22 Haulers Intercepted . | . . . . . . . Recyclers Shooed . | . . . . . . . Parts Field Recycled . | . . . . . . . Retrieved Matter . | . . . . . . . Parts Self-Destructed . | . . . . . . . Prevented . | . . . . . . . Kills | -11 -10 -10 -9 -9 -8 -7 ------- Run | Yrd Mat Min Mat Min Mat Fac Combat Hostiles Destroyed 50 | . 10 1 3 4 16 16 Melee 1 | . . . . . 1 . Guns 22 | . 10 1 3 1 3 4 Cannons 21 | . . . . . 9 12 AOE 6 | . . . . 3 3 . Classes Destroyed 9 | . 4 1 1 . . 3 Builder 2 | . 1 . . . 1 . Recycler 1 | . . . . . . 1 Watcher 2 | . 2 . . . . . Swarmer 14 | . 3 . . 4 7 . Grunt 23 | . 7 . 1 . 8 7 Sentry 5 | . . . 2 . 1 2 Hunter 2 | . . . . . . 2 Programmer 5 | . . . . . . 5 Assembled 1 | . . 1 . . . . Best Kill Streak 5 | . 3 1 2 4 5 2 Combat Bots Only 5 | . 3 1 2 4 5 2 Max Kills in Single Turn 3 | . 1 1 1 3 1 1 Gunslinging . | . . . . . . . Exploded 3 | . . . . 3 1 . Melee 1 | . . . . . 1 . Uniques/NPCs Destroyed . | . . . . . . . Combat | -11 -10 -10 -9 -9 -8 -7 -------- Run | Yrd Mat Min Mat Min Mat Fac Hostile Shots Fired 647 | . 56 4 21 15 205 346 Missed 188 | . 17 1 4 2 50 114 Damage Taken 6404 | . 479 103 296 117 2088 3321 Core 1302 | . 144 67 41 26 321 703 Absorbed by Shields . | . . . . . . . Redirected to Shielding 105 | . . . 21 8 23 53 Regen/Repaired (Parts) 273 | . . . 28 . . 245 Core Remaining (%) 59 | 100 . 15 . 83 41 . Volleys Fired 186 | 1 43 4 15 4 52 67 Largest 3 | 2 2 2 2 2 2 3 Hottest 230 | 70 70 40 43 53 150 230 Shots Fired 358 | 2 86 8 30 5 86 141 Gun 205 | 2 86 8 30 4 18 57 Cannon 142 | . . . . . 59 83 Launcher 10 | . . . . 1 9 . Special 1 | . . . . . . 1 Kinetic 172 | 1 53 8 30 4 39 37 Thermal 158 | 1 33 . . . 26 98 Explosive 10 | . . . . 1 9 . Electromagnetic 18 | . . . . . 12 6 Robot Hit Streak 15 | 1 15 5 6 2 6 11 Robot Miss Streak 6 | 1 3 3 1 1 5 6 Penetration Max 1 | . . . . . 1 . Secondary Targets . | . . . . . . . Shots Hit Robots 219 | 1 56 4 20 2 46 90 Core Hits 101 | . 22 2 8 4 32 33 Critical Kills 3 | . . . . . 3 . Critical Parts Destroyed 5 | . . . . . 5 . Critical Strikes 12 | . 2 . . . 8 2 Burn 2 | . 2 . . . . . Destroy 8 | . . . . . 8 . Blast 2 | . . . . . . 2 Melee Attacks . | . . . . . . . Impact . | . . . . . . . Slashing . | . . . . . . . Piercing . | . . . . . . . Sneak Attacks . | . . . . . . . Combat Hostiles . | . . . . . . . Follow-up Attacks . | . . . . . . . Damage Inflicted 5021 | 13 722 45 305 194 1568 2174 Guns 1881 | 13 719 45 289 29 118 668 Cannons 2388 | . . . . . 894 1494 Explosions 703 | . . . . 165 538 . Melee . | . . . . . . . Ramming 49 | . 3 . 16 . 18 12 Kinetic 2044 | 13 467 45 289 29 458 743 Thermal 1983 | . 252 . . . 333 1398 Explosive 703 | . . . . 165 538 . Electromagnetic 242 | . . . . . 221 21 Impact . | . . . . . . . Slashing . | . . . . . . . Piercing . | . . . . . . . Highest Corruption 3 | . . . 1 1 . 3 Average Corruption 1 | . . . 1 1 . 1 Corruption Purged . | . . . . . . . Corruption Blocked . | . . . . . . . Effects 11 | . . . 1 . . 10 Matter Fused 3 | . . . . . . 3 Heat Flow Errors 3 | . . . 1 . . 2 Energy Discharges 1 | . . . . . . 1 Parts Fused 1 | . . . . . . 1 Data Loss (minor) 1 | . . . . . . 1 Data Loss (major) 1 | . . . . . . 1 Weapon Failures 1 | . . . . . . 1 Overload Shots . | . . . . . . . Overflow Damage 54 | . . . . 30 14 10 Projectiles 24 | . . . . . 14 10 Explosions 30 | . . . . 30 . . Melee . | . . . . . . . Knockbacks 6 | . . . . . 1 5 Impact . | . . . . . . . Kinetic 5 | . . . . . 1 4 Secondary 1 | . . . . . . 1 Self-Inflicted Damage 45 | . . . . 24 21 . Shots 2 | . . . . 1 1 . Rammed 8 | . . . . . 4 4 Targets Rammed 15 | . 2 . 2 . 6 5 Kicked 6 | . 2 . 2 . 1 1 Crushed 1 | . . . . . 1 . Highest Temperature 567 | . 199 . 267 . 567 525 Average Temperature 145 | . 75 . 108 . 205 140 Received Heat Transfer 2187 | . 285 . 81 . 891 930 Effects 28 | . . . . . 21 7 Shutdowns 6 | . . . . . 3 3 Energy Bleed 2 | . . . . . 1 1 Interference 5 | . . . . . 4 1 Short Circuit 1 | . . . . . 1 . Damage (minor) 4 | . . . . . 2 2 Damage (major) 10 | . . . . . 10 . Siege Activations . | . . . . . . . Robots Corrupted . | . . . . . . . Combat Hostiles . | . . . . . . . Parts Fried 1 | . . . . . 1 . Impact Corruptions . | . . . . . . . Robots Melted . | . . . . . . . Combat Hostiles . | . . . . . . . Parts Melted 10 | . 1 . . . 1 8 Heat Transferred 3789 | . 888 . . . 592 2309 Parts Sabotaged . | . . . . . . . Parts Stolen . | . . . . . . . Parts Stripped . | . . . . . . . Power Chain Reactions . | . . . . . . . Alert | -11 -10 -10 -9 -9 -8 -7 ------- Run | Yrd Mat Min Mat Min Mat Fac Peak Influence 264 | . 242 57 203 193 264 155 Initial 78 | . . 57 22 78 74 71 Average 84 | . 95 57 101 182 143 61 Maximum Alert Level 1 | . 1 . 1 . 1 . Low Security (%) 95 | 100 96 100 97 100 78 100 Level 1 4 | . 3 . 2 . 21 . Level 2 . | . . . . . . . Level 3 . | . . . . . . . Level 4 . | . . . . . . . Level 5 . | . . . . . . . High Security . | . . . . . . . Max Security . | . . . . . . . Squads Dispatched 13 | . 1 . 1 . 3 8 Investigation 5 | . . . . . 2 3 Extermination 4 | . . . . . . 4 Reinforcement 4 | . 1 . 1 . 1 1 Assault . | . . . . . . . Garrison . | . . . . . . . Intercept . | . . . . . . . Searches Triggered . | . . . . . . . Construction Impeded . | . . . . . . . Haulers Reinforced . | . . . . . . . Active Scanning Responses . | . . . . . . . Cargo Convoy Interrupts . | . . . . . . . Stealth | -11 -10 -10 -9 -9 -8 -7 --------- Run | Yrd Mat Min Mat Min Mat Fac Distress Signals 4 | . 3 . . . 1 . Communications Jammed . | . . . . . . . Distress Signals . | . . . . . . . Times Spotted 82 | . 18 1 7 4 27 25 Peak Tracking Total 5 | . 5 1 3 4 5 4 Tactical Retreats 1 | . 1 . . . . . Traps | -11 -10 -10 -9 -9 -8 -7 ------- Run | Yrd Mat Min Mat Min Mat Fac Traps Triggered 2 | . . . 1 . 1 . Indirectly . | . . . . . . . Trap Hack Attempts . | . . . . . . . Triggered . | . . . . . . . Disarmed . | . . . . . . . Reprogrammed 3 | . 3 . . . . . Reused . | . . . . . . . Traps Extracted . | . . . . . . . Installed . | . . . . . . . Triggered . | . . . . . . . Machines | -11 -10 -10 -9 -9 -8 -7 ---------- Run | Yrd Mat Min Mat Min Mat Fac Machines Disabled 6 | . . . . 1 2 3 Max in Single Turn 1 | . . . . 1 1 1 Machines Repaired . | . . . . . . . Machines Dismantled . | . . . . . . . Machines Sabotaged . | . . . . . . . Overloaded Fab Kills . | . . . . . . . Hacking | -11 -10 -10 -9 -9 -8 -7 --------- Run | Yrd Mat Min Mat Min Mat Fac Machines Accessed 9 | . 2 . 2 . 1 4 Terminals 6 | . 2 . 1 . 1 2 Fabricators . | . . . . . . . Repair Stations 2 | . . . 1 . . 1 Recycling Units 1 | . . . . . . 1 Scanalyzers . | . . . . . . . Garrison Access . | . . . . . . . Total Hacks 33 | . 5 . 5 . 5 18 Successful 21 | . 3 . 3 . 1 14 Failed 12 | . 2 . 2 . 4 4 Catastrophic 2 | . . . . . 2 . Database Lockouts . | . . . . . . . Manual . | . . . . . . . Terminals 20 | . 5 . 3 . 5 7 Fabricators . | . . . . . . . Repair Stations 9 | . . . 2 . . 7 Recycling Units 4 | . . . . . . 4 Scanalyzers . | . . . . . . . Garrison Access . | . . . . . . . Terminal Hacks 11 | . 3 . 1 . 1 6 Level Access Points 1 | . . . . . . 1 Emergency Access Points 2 | . 1 . 1 . . . Alert Level 1 | . . . . . 1 . Locate Traps 3 | . 1 . . . . 2 Reprogram Traps 1 | . 1 . . . . . Dispatch Records 1 | . . . . . . 1 Reinforcement Status 1 | . . . . . . 1 Hauler Manifests 1 | . . . . . . 1 Fabricator Hacks . | . . . . . . . Repair Station Hacks 6 | . . . 2 . . 4 Scan Component 3 | . . . 1 . . 2 Repair 3 | . . . 1 . . 2 Recycling Unit Hacks 4 | . . . . . . 4 Recycle Component 1 | . . . . . . 1 Process 1 | . . . . . . 1 Report Inventory 2 | . . . . . . 2 Scanalyzer . | . . . . . . . Garrison Access Hacks . | . . . . . . . Unauthorized Hacks . | . . . . . . . Terminals . | . . . . . . . Fabricators . | . . . . . . . Repair Stations . | . . . . . . . Recycling Units . | . . . . . . . Scanalyzers . | . . . . . . . Garrison Access . | . . . . . . . Data Cores Recovered . | . . . . . . . Used . | . . . . . . . Hacking Detections 8 | . 2 . 2 . 1 3 Full Trace Events 4 | . . . . . 1 3 Feedback Events . | . . . . . . . Feedback Blocked . | . . . . . . . Robot Schematics Acquired . | . . . . . . . Robots Built . | . . . . . . . Authchips . | . . . . . . . Time . | . . . . . . . Total Robot Build Rating . | . . . . . . . Part Schematics Acquired . | . . . . . . . Parts Built . | . . . . . . . Authchips . | . . . . . . . Time . | . . . . . . . Total Part Build Rating . | . . . . . . . Parts Repaired 3 | . . . 1 . . 2 Time 51 | . . . 25 . . 26 Parts Recycled 1 | . . . . . . 1 Recycled Matter 2 | . . . . . . 2 Retrieved Matter . | . . . . . . . Retrieved Components . | . . . . . . . Parts Scanalyzed . | . . . . . . . Part Schematics Acquired . | . . . . . . . Parts Damaged . | . . . . . . . Bothacking | -11 -10 -10 -9 -9 -8 -7 ------------ Run | Yrd Mat Min Mat Min Mat Fac Used RIF Installer . | . . . . . . . Robots Hacked . | . . . . . . . Non-combat . | . . . . . . . Combat . | . . . . . . . Robot Hacks Applied . | . . . . . . . Relay Couplers Released . | . . . . . . . Fabnet Peak Effective % . | . . . . . . . Robots Rewired . | . . . . . . . Allies Hacked . | . . . . . . . Hacks Repelled . | . . . . . . . Allies | -11 -10 -10 -9 -9 -8 -7 -------- Run | Yrd Mat Min Mat Min Mat Fac Total Allies . | . . . . . . . Largest Group . | . . . . . . . Highest-Rated Group . | . . . . . . . Highest-Rated Ally . | . . . . . . . Total Orders . | . . . . . . . Ally Attacks . | . . . . . . . Total Damage . | . . . . . . . Kills . | . . . . . . . Allies Corrupted . | . . . . . . . Allies Melted . | . . . . . . . Intel | -11 -10 -10 -9 -9 -8 -7 ------- Run | Yrd Mat Min Mat Min Mat Fac Robot Analysis Total . | . . . . . . . Derelict Logs Recovered . | . . . . . . . Drone Launches . | . . . . . . . Drone Recoveries . | . . . . . . . Exploration | -11 -10 -10 -9 -9 -8 -7 ------------- Run | Yrd Mat Min Mat Min Mat Fac Turns Passed 3875 | 58 660 290 257 62 645 1903 Spaces Moved 1418 | 38 269 142 144 39 303 483 Core 147 | 5 . . . . 6 136 Treads 413 | . . . . . 139 274 Legs 796 | 33 269 142 144 39 158 11 Wheels 62 | . . . . . . 62 Hover . | . . . . . . . Flight . | . . . . . . . Fastest Speed 50 | 50 120 190 120 120 120 130 Average Speed 212 | 114 176 190 121 120 149 320 Slowest Speed 850 | 120 190 190 190 120 450 850 Overloaded Moves . | . . . . . . . Propulsion Burnouts . | . . . . . . . Robots Hopped . | . . . . . . . Cave-ins Triggered . | . . . . . . . Exploration Rate (%) 26 | 4 61 38 26 13 29 15 Regions Visited 6 Branch Regions 2 Pre-discovered Areas . | . . . . . . . Known Exits Taken . | . . . . . . . Unknown Exits Taken 6 | 1 1 1 1 1 1 . Scrap Searched 2 | . . 1 . 1 . . Spaces Dug . | . . . . . . . Terrain Destroyed 56 | . . . . 10 40 6 Melee . | . . . . . . . Projectile 16 | . . . . . 10 6 AOE 40 | . . . . 10 30 . Terrain Rammed . | . . . . . . . Walls Destroyed . | . . . . . . . Machines Disabled . | . . . . . . . Actions | -11 -10 -10 -9 -9 -8 -7 --------- Run | Yrd Mat Min Mat Min Mat Fac Total 1924 | 48 365 157 194 50 404 706 Wait 178 | . 30 2 26 . 9 111 Move 1412 | 37 268 141 143 38 302 483 Hop . | . . . . . . . Pick Up 38 | 5 8 4 2 1 9 9 Fast Attach 32 | 5 2 . 3 . 5 17 Attach 28 | . 2 . 2 . 13 11 Detach . | . . . . . . . Swap 18 | . 6 2 . 4 5 1 Drop 17 | . 4 4 1 3 3 2 Fire 186 | 1 43 4 15 4 52 67 Melee . | . . . . . . . Ram . | . . . . . . . Kick 6 | . 2 . 2 . 1 1 Crush 9 | . . . . . 5 4 Escape Stasis . | . . . . . . . Rewire . | . . . . . . . Trap . | . . . . . . . Miscellaneous . | . . . . . . . Route ------- -11/Scrapyard -10/Materials -10/Mines (discovered 2 exits: *Mat x2) -9/Materials -9/Mines -8/Materials -7/Factory (discovered 4 exits: Fac x4) History --------- Turn | Location | Event 14 | -11/Scrapyard | Discovered new exit (range 16) 59 | -11/Scrapyard | Entered Materials 313 | -10/Materials | Build established: Mutant 394 | -10/Materials | Discovered new exit (range 8) 512 | -10/Materials | Core integrity fell below 50% 719 | -10/Materials | Entered Mines 828 | -10/Mines | Assembled infested the area 833 | -10/Mines | Assisted by a Guerilla fighting off Assembled 865 | -10/Mines | Core integrity fell below 20% 942 | -10/Mines | Discovered new exit (range 16) 963 | -10/Mines | Discovered new exit (range 8) 1009 | -10/Mines | Entered Materials 1009 | -9/Materials | Evolved 2 slots: Propulsion x1, Utility x1 1106 | -9/Materials | Repaired Fission Core 1260 | -9/Materials | Discovered new exit (range 6) 1266 | -9/Materials | Entered Mines 1303 | -9/Mines | Discovered new exit (range 15) 1309 | -9/Mines | Build established: Scavenger-Mutant 1328 | -9/Mines | Entered Materials 1328 | -8/Materials | Evolved 2 slots: Power x1, Utility x1 1416 | -8/Materials | Lost 7 parts (2p1n1u3w) 1619 | -8/Materials | Build established: Mutant 1621 | -8/Materials | Lost 3 parts (1n2u) 1683 | -8/Materials | Lost 6 parts (1p2n3w) 1833 | -8/Materials | Core integrity fell below 50% 1940 | -8/Materials | Discovered new exit (range 15) 1973 | -8/Materials | Entered Factory 1973 | -7/Factory | Evolved 2 slots: Utility x1, Weapon x1 2142 | -7/Factory | Repaired Lgt. Treads 2156 | -7/Factory | Repaired Lgt. Treads 2420 | -7/Factory | Lost 3 parts (1n1u1w) 2504 | -7/Factory | Identified exit to Factory 2685 | -7/Factory | Lost 5 parts (1p1n1u2w) 2834 | -7/Factory | Core integrity fell below 50% 3222 | -7/Factory | Lost 3 parts (1p1u1w) 3477 | -7/Factory | Build established: Tank 3718 | -7/Factory | Lost 3 parts (1p1u1w) 3856 | -7/Factory | Core integrity fell below 20% 3876 | -7/Factory | Destroyed by L-41 Fighter with Axe Last Messages --------------- 03832_ Slug penetrates Wall. 03832_ System Shield destroyed. 03835_ R-06 Scavenger collects Gravmag System. 03836_ U-05 Engineer repairs door. 03836_ K-01 Serf collects debris. 03838_ U-05 Engineer builds a Wall. 03840_ G-47 Trooper knocked back. 03842_ Propulsion Shielding destroyed. 03842_ G-47 Trooper destroyed. 03843_ K-01 Serf collects debris. 03846_ Gauss Cannon severed. 03847_ K-01 Serf collects debris. 03848_ Kicked K-01 Serf. 03849_ Structural Scanner destroyed. 03849_ Titanium Leg destroyed. 03850_ Acquired 46 matter. 03850_ K-01 Serf collects debris. 03852_ Critical hit (Burn: +37). 03857_ R-06 Scavenger collects Gauss Cannon. 03865_ System corrupted: Matter fused (-9). Map ----- +----------------------------------------------------+ | ?????????????????????????????????????????????????? | | ?????????????????????????????????????????????????? | | ?????????????????????????????????????????????????? | | ?????????????????????????????????????????????????? | | ?????????????????????????????????????????????????? | | ?????????????????????????????????????????????????? | | ?????????????????????????????????????????????????? | | ?????????????????????????????????????????????????? | | ?????????????????????????????????????????????????? | | ?????????????????????????????????????????????????? | | ?????????????????????????????????????????????????? | | ?????????????????????????????????????????????????? | | ?????????????????????????????????????????????????? | | ?????????????????????????????????????????????????? | | ???????????????????#??????????? ?????????????????? | | ????????????????????????????"????????????????????? | | ????????????????????????#????????????????????????? | | ???????????????? ???????#?????????????"??????????? | | ?????????????????????#???????????????????????????? | | ????????????????????????? ???????????????????????? | | ???????????###################??#????????????????? | | ???????????###################???????????????????? | | ????????## #########????????????? | | ????????## """"""" #########??#?????????? | | ????????## """"""" [!!+ ##????????????? | | ????????## """"""" l@! ###### ##????????????? | | ????????## """""" ! !! ###### ##????????????? | | ????????## ##?### ##?#??????????? | | ????????## %% g ##??## ##????????????? | | ???????### % % !###### ###???????????? | | ???????############+##+###########+###???????????? | | ????? # ##???????????? | | ????? % % # ##???????????? | | ????? # ##???????????? | | ?????? % # """ """ ##???????????? | | ?????? + """ """ ##???????????? | | ?????? # """ """ ##???????????? | | ?????? # ##???????????? | | ???????######### # """ """ ##???????????? | | ??????? ######## # """ """ ##???????????? | | ??????????????## # """ """ ##???????????? | | ????????????#?## # ##???????????? | | ????????#?#???## # ##???????????? | | ??????????????## ###############???????????? | | ??????????????## ###############??????###### | | ??????????????## ##??????############## | | ??????????????## ##??#???# # | | ?????????????### ###?????# """ """"" # | | ?????????????### ###?????# """ ""T"" + | | ?????? ####### ##?????# """ # | +----------------------------------------------------+ Best States ------------- Heat Dissipation 48 Coolant Potential 50 Energy Generation 25 Energy Capacity 475 Matter Stores 300 Matter Capacity 300 Sight Range 16 Robot Scan Range 15 Terrain Scan Range 14 Terrain Scan Density 10 Armor Coverage 225 Propulsion Shielding 33 Weapon Shielding 33 Evasion (%) 55 Targeting Accuracy 5 Recoil Reduction 7 Particle Charging 15 Offensive Hacking 10 Defensive Hacking 10 Item Schematics ----------------- None Robot Schematics ------------------ None Fabricated ------------ Nothing Alien Tech Used ----------------- None Achievements -------------- None Challenges ------------ None Game ------ Seed DisruptorDefenseKatana Manual? 0 Play Time 00:28:36 Cumulative 8.9 hours Start 2024.04.03 @ 21:38:25 End 2024.04.03 @ 22:05:46 Sessions 1 Manual Loads 0 Difficulty Rogue Special Mode None Game No. 22 Rogue 22 Adventurer 0 Explorer 0 Win Type - Total 0 Types 0/0/0/0/0/0/0/0/0 Lore% 13 Gallery% 20 Achievement% 12 Wizard Run 0 Options --------- Layout 1 ASCII 0 Keyboard 0 Movement Mouse Keybinds 0 Fullscreen 1 Font 24/Smallcaps Map View 50x35 Zoom Use 0% Tactical HUD 1 Map Filters NONE Filters NONE Steam 1 RUN: b0319613-cd83-4fa7-9f2a-406443d92759